[Event "*** Titled Tuesday Blitz"]
[Site "Chess.com"]
[Date "2020.11.24"]
[Round "6"]
[White "MasterMK73"]
[Black "igorknyazev"]
[Result "0-1"]
[WhiteElo "2262"]
[BlackElo "2063"]
[TimeControl "180+1"]
[EndTime "11:23:19 PST"]
[Termination "igorknyazev won on time"]

1. e4 {[%clk 0:03:00.9]} 1... e5 {[%clk 0:02:52.7]} 2. Nc3 {[%clk 0:02:59.8]}
2... Nc6 {[%clk 0:02:51]} 3. g3 {[%clk 0:02:58.7]} 3... Bc5 {[%clk 0:02:48.6]}
4. Bg2 {[%clk 0:02:57.9]} 4... Nge7 {[%clk 0:02:49.2]} 5. Nge2 {[%clk
0:02:56.4]} 5... O-O {[%clk 0:02:49.5]} 6. O-O {[%clk 0:02:56.3]} 6... d6 {[%clk
0:02:47.7]} 7. d3 {[%clk 0:02:55.7]} 7... a6 {[%clk 0:02:47.6]} 8. h3 {[%clk
0:02:51.9]} 8... Be6 {[%clk 0:02:42.6]} 9. Nd5 {[%clk 0:02:50.1]} 9... f5 {[%clk
0:02:38.3]} 10. Kh2 {[%clk 0:02:39.3]} 10... Nd4 {[%clk 0:02:32.1]} 11. c3
{[%clk 0:02:30.7]} 11... Nxe2 {[%clk 0:02:31.4]} 12. Qxe2 {[%clk 0:02:30.7]}
12... Nxd5 {[%clk 0:02:31.7]} 13. exd5 {[%clk 0:02:29.7]} 13... Bf7 {[%clk
0:02:25.4]} 14. Rd1 {[%clk 0:02:09]} 14... Ba7 {[%clk 0:02:22.6]} 15. c4 {[%clk
0:01:57]} 15... Qf6 {[%clk 0:02:08.2]} 16. Be3 {[%clk 0:01:47.4]} 16... Bxe3
{[%clk 0:02:02.1]} 17. fxe3 {[%clk 0:01:47.1]} 17... Qg5 {[%clk 0:02:00.1]} 18.
Rf1 {[%clk 0:01:43.4]} 18... Bh5 {[%clk 0:01:57.7]} 19. Qd2 {[%clk 0:01:34.1]}
19... b6 {[%clk 0:01:48.5]} 20. Bf3 {[%clk 0:01:29.4]} 20... Bg6 {[%clk
0:01:46.6]} 21. Rad1 {[%clk 0:01:20.9]} 21... Rae8 {[%clk 0:01:42.6]} 22. Bg2
{[%clk 0:01:03.8]} 22... Bh5 {[%clk 0:01:40.3]} 23. Rde1 {[%clk 0:01:01.8]}
23... Qh6 {[%clk 0:01:33.7]} 24. b4 {[%clk 0:00:56.5]} 24... g5 {[%clk
0:01:21.6]} 25. Rh1 {[%clk 0:00:54.1]} 25... f4 {[%clk 0:01:20.8]} 26. exf4
{[%clk 0:00:48.8]} 26... gxf4 {[%clk 0:01:17.5]} 27. gxf4 {[%clk 0:00:37.8]}
27... Qxf4+ {[%clk 0:01:13.4]} 28. Qxf4 {[%clk 0:00:36.4]} 28... Rxf4 {[%clk
0:01:13.6]} 29. Rhf1 {[%clk 0:00:35.2]} 29... Ref8 {[%clk 0:01:12.7]} 30. Rxf4
{[%clk 0:00:28.3]} 30... Rxf4 {[%clk 0:01:12]} 31. Rf1 {[%clk 0:00:28.9]} 31...
Rxf1 {[%clk 0:01:07.6]} 32. Bxf1 {[%clk 0:00:28.9]} 32... Kg7 {[%clk 0:01:08.3]}
33. Kg3 {[%clk 0:00:28.6]} 33... Kf6 {[%clk 0:01:08.6]} 34. h4 {[%clk
0:00:24.5]} 34... Bd1 {[%clk 0:01:04.6]} 35. Kf2 {[%clk 0:00:22]} 35... Kf5
{[%clk 0:01:03.9]} 36. Bh3+ {[%clk 0:00:18.8]} 36... Kf4 {[%clk 0:01:04.1]} 37.
Bf1 {[%clk 0:00:18.3]} 37... a5 {[%clk 0:01:03.1]} 38. bxa5 {[%clk 0:00:13.6]}
38... bxa5 {[%clk 0:01:03]} 39. Ke1 {[%clk 0:00:12.5]} 39... Bf3 {[%clk
0:00:58.9]} 40. Kd2 {[%clk 0:00:12.3]} 40... Kg4 {[%clk 0:00:58.2]} 41. d4
{[%clk 0:00:11.4]} 41... exd4 {[%clk 0:00:57.2]} 42. Kd3 {[%clk 0:00:11.5]}
42... Kxh4 {[%clk 0:00:56.9]} 43. Kxd4 {[%clk 0:00:11.8]} 43... Kg3 {[%clk
0:00:56.7]} 44. c5 {[%clk 0:00:11.9]} 44... h5 {[%clk 0:00:56.4]} 45. cxd6
{[%clk 0:00:11]} 45... cxd6 {[%clk 0:00:56.2]} 46. Kc4 {[%clk 0:00:10.6]} 46...
h4 {[%clk 0:00:54.8]} 47. Kb5 {[%clk 0:00:10.5]} 47... Bg2 {[%clk 0:00:52.6]}
48. Bxg2 {[%clk 0:00:06.8]} 48... Kxg2 {[%clk 0:00:52.5]} 49. Kc6 {[%clk
0:00:07]} 49... h3 {[%clk 0:00:53.4]} 50. Kxd6 {[%clk 0:00:07.5]} 50... h2
{[%clk 0:00:54.2]} 51. Kc7 {[%clk 0:00:08.3]} 51... h1=Q {[%clk 0:00:54.6]} 52.
d6 {[%clk 0:00:08.8]} 52... Qc1+ {[%clk 0:00:54.1]} 53. Kd8 {[%clk 0:00:08.3]}
53... Qg5+ {[%clk 0:00:54.1]} 54. Kc7 {[%clk 0:00:07.5]} 54... Qc5+ {[%clk
0:00:54.2]} 55. Kd7 {[%clk 0:00:07.2]} 55... Kf3 {[%clk 0:00:53.8]} 56. Ke6
{[%clk 0:00:06.7]} 56... Qc6 {[%clk 0:00:52.6]} 57. Ke7 {[%clk 0:00:06.2]} 57...
Qe4+ {[%clk 0:00:51.9]} 58. Kd8 {[%clk 0:00:04.9]} 58... Qh4+ {[%clk 0:00:49.2]}
59. Kc7 {[%clk 0:00:04.3]} 59... Qf4 {[%clk 0:00:48.2]} 60. Kc6 {[%clk
0:00:03.7]} 60... Qf6 {[%clk 0:00:47.7]} 61. Kc7 {[%clk 0:00:03.4]} 61... Qe5
{[%clk 0:00:47.5]} 62. Kc6 {[%clk 0:00:03.4]} 62... Qe6 {[%clk 0:00:47]} 63. Kc7
{[%clk 0:00:03.6]} 63... Qxa2 {[%clk 0:00:46.7]} 64. d7 {[%clk 0:00:03]} 64...
Qd5 {[%clk 0:00:46.1]} 65. d8=Q {[%clk 0:00:01.1]} 65... Qxd8+ {[%clk
0:00:45.4]} 66. Kxd8 {[%clk 0:00:01]} 66... a4 {[%clk 0:00:46.3]} 0-1

[Event "*** Titled Tuesday Blitz"]
[Site "Chess.com"]
[Date "2020.11.24"]
[Round "6"]
[White "Jumbo"]
[Black "Zubrrr"]
[Result "1-0"]
[WhiteElo "2849"]
[BlackElo "2659"]
[TimeControl "180+1"]
[EndTime "11:23:20 PST"]
[Termination "Jumbo won on time"]

1. d4 {[%clk 0:03:00.9]} 1... f5 {[%clk 0:02:59]} 2. Nc3 {[%clk 0:02:57.7]} 2...
Nf6 {[%clk 0:02:59.2]} 3. Bg5 {[%clk 0:02:57.6]} 3... d5 {[%clk 0:02:59.6]} 4.
e3 {[%clk 0:02:57.7]} 4... Be6 {[%clk 0:02:58.8]} 5. h4 {[%clk 0:02:58]} 5...
Nbd7 {[%clk 0:02:57.5]} 6. Nh3 {[%clk 0:02:54.8]} 6... Bf7 {[%clk 0:02:56.1]} 7.
Nf4 {[%clk 0:02:54.5]} 7... c6 {[%clk 0:02:50.1]} 8. h5 {[%clk 0:02:42.7]} 8...
Qb6 {[%clk 0:02:28.5]} 9. a3 {[%clk 0:02:40.8]} 9... Ne4 {[%clk 0:02:22.9]} 10.
Nxe4 {[%clk 0:02:36.7]} 10... fxe4 {[%clk 0:02:23.8]} 11. b4 {[%clk 0:02:16.3]}
11... e5 {[%clk 0:02:19.2]} 12. dxe5 {[%clk 0:02:07.1]} 12... Nxe5 {[%clk
0:02:20.1]} 13. Qd4 {[%clk 0:02:07]} 13... Bd6 {[%clk 0:02:05.6]} 14. h6 {[%clk
0:02:03.2]} 14... O-O {[%clk 0:01:34.3]} 15. hxg7 {[%clk 0:01:49.9]} 15... Rfe8
{[%clk 0:01:31.2]} 16. Nh5 {[%clk 0:01:29.5]} 16... Bxh5 {[%clk 0:01:27.8]} 17.
Rxh5 {[%clk 0:01:28.5]} 17... Qxd4 {[%clk 0:01:03.2]} 18. exd4 {[%clk
0:01:29.4]} 18... Nf7 {[%clk 0:01:02.3]} 19. c4 {[%clk 0:01:11.5]} 19... Kxg7
{[%clk 0:00:51.3]} 20. Be3 {[%clk 0:01:05.2]} 20... Kg6 {[%clk 0:00:46.5]} 21.
g4 {[%clk 0:01:04.6]} 21... Rad8 {[%clk 0:00:37.8]} 22. Kd2 {[%clk 0:01:00.1]}
22... h6 {[%clk 0:00:35.9]} 23. cxd5 {[%clk 0:00:49.5]} 23... cxd5 {[%clk
0:00:35.7]} 24. Bb5 {[%clk 0:00:49.7]} 24... Rh8 {[%clk 0:00:31.6]} 25. Rah1
{[%clk 0:00:45.1]} 25... Be7 {[%clk 0:00:25.9]} 26. Ba4 {[%clk 0:00:44.5]} 26...
Bg5 {[%clk 0:00:24.2]} 27. Bb3 {[%clk 0:00:43.2]} 27... Bxe3+ {[%clk 0:00:18.8]}
28. Kxe3 {[%clk 0:00:39.9]} 28... Ng5 {[%clk 0:00:19.5]} 29. Rc1 {[%clk
0:00:31.8]} 29... Rd7 {[%clk 0:00:18.3]} 30. Rc5 {[%clk 0:00:24]} 30... Rhd8
{[%clk 0:00:17.7]} 31. Bc2 {[%clk 0:00:22.4]} 31... Kg7 {[%clk 0:00:11.3]} 32.
Bd1 {[%clk 0:00:20.3]} 32... Rf8 {[%clk 0:00:09.4]} 33. Be2 {[%clk 0:00:20.2]}
33... Rfd8 {[%clk 0:00:07.4]} 34. Rh1 {[%clk 0:00:20.2]} 34... b6 {[%clk
0:00:05.6]} 35. Rc6 {[%clk 0:00:19.7]} 35... Rd6 {[%clk 0:00:06.1]} 36. Rc7+
{[%clk 0:00:18.3]} 36... R8d7 {[%clk 0:00:06.4]} 37. Rhc1 {[%clk 0:00:18.7]}
37... Ne6 {[%clk 0:00:06.2]} 38. Rc8 {[%clk 0:00:16.5]} 38... Rf7 {[%clk
0:00:06.1]} 39. Re8 {[%clk 0:00:13.1]} 39... Nf4 {[%clk 0:00:06.1]} 40. Bf1
{[%clk 0:00:12.2]} 40... Rdf6 {[%clk 0:00:05.3]} 41. Rcc8 {[%clk 0:00:11.2]}
41... Ng6 {[%clk 0:00:05.6]} 42. Be2 {[%clk 0:00:04.6]} 42... Rxf2 {[%clk
0:00:05.5]} 43. Rcd8 {[%clk 0:00:04.1]} 43... Rg2 {[%clk 0:00:02.7]} 44. Rg8+
{[%clk 0:00:01.9]} 44... Kh7 {[%clk 0:00:02.8]} 45. Rge8 {[%clk 0:00:02.3]}
45... Rg3+ {[%clk 0:00:02]} 46. Kd2 {[%clk 0:00:02.2]} 46... Nf4 {[%clk
0:00:02.2]} 47. Ba6 {[%clk 0:00:01.8]} 47... Rxa3 {[%clk 0:00:01.5]} 48. b5
{[%clk 0:00:01.6]} 1-0

[Event "*** Titled Tuesday Blitz"]
[Site "Chess.com"]
[Date "2020.11.24"]
[Round "6"]
[White "Agoking701"]
[Black "Ranindu2003"]
[Result "0-1"]
[WhiteElo "2345"]
[BlackElo "2550"]
[TimeControl "180+1"]
[EndTime "11:23:21 PST"]
[Termination "Ranindu2003 won on time"]

1. e4 {[%clk 0:02:57.3]} 1... g6 {[%clk 0:03:00.3]} 2. d4 {[%clk 0:02:57.6]}
2... Bg7 {[%clk 0:03:00.9]} 3. Nf3 {[%clk 0:02:56.7]} 3... d6 {[%clk 0:03:01.4]}
4. Nc3 {[%clk 0:02:56.8]} 4... a6 {[%clk 0:03:01.6]} 5. a4 {[%clk 0:02:55.1]}
5... b6 {[%clk 0:03:01.7]} 6. Be2 {[%clk 0:02:49.6]} 6... Bb7 {[%clk 0:03:02.1]}
7. O-O {[%clk 0:02:49.4]} 7... h6 {[%clk 0:03:02.7]} 8. Be3 {[%clk 0:02:37.8]}
8... e6 {[%clk 0:03:02.7]} 9. Qd2 {[%clk 0:02:22.8]} 9... Nd7 {[%clk 0:03:01.8]}
10. Rad1 {[%clk 0:02:19.8]} 10... Ne7 {[%clk 0:03:01.5]} 11. Ne1 {[%clk
0:02:15.1]} 11... Nf6 {[%clk 0:03:00.2]} 12. Bd3 {[%clk 0:02:12.7]} 12... c5
{[%clk 0:02:54.8]} 13. f4 {[%clk 0:02:00.3]} 13... Ng4 {[%clk 0:02:52.3]} 14.
dxc5 {[%clk 0:01:40.1]} 14... dxc5 {[%clk 0:02:29.9]} 15. e5 {[%clk 0:01:23.6]}
15... Qc7 {[%clk 0:02:07.2]} 16. Ne4 {[%clk 0:01:19.1]} 16... Nf5 {[%clk
0:01:53.2]} 17. Nd6+ {[%clk 0:01:04.1]} 17... Nxd6 {[%clk 0:01:47]} 18. exd6
{[%clk 0:01:05]} 18... Qc6 {[%clk 0:01:47.5]} 19. d7+ {[%clk 0:01:05]} 19... Ke7
{[%clk 0:01:33.8]} 20. Nf3 {[%clk 0:00:57.3]} 20... Rhd8 {[%clk 0:01:26.4]} 21.
Kh1 {[%clk 0:00:37.9]} 21... Rxd7 {[%clk 0:01:24.2]} 22. Bg1 {[%clk 0:00:36.4]}
22... Rad8 {[%clk 0:01:20.2]} 23. Qe2 {[%clk 0:00:34.1]} 23... Kf8 {[%clk
0:01:15.4]} 24. h3 {[%clk 0:00:32.7]} 24... h5 {[%clk 0:00:47.9]} 25. hxg4
{[%clk 0:00:31.3]} 25... hxg4 {[%clk 0:00:48.8]} 26. Ne5 {[%clk 0:00:28.3]}
26... Bxe5 {[%clk 0:00:44.9]} 27. fxe5 {[%clk 0:00:29.2]} 27... c4 {[%clk
0:00:45.4]} 28. Rf2 {[%clk 0:00:09.9]} 28... cxd3 {[%clk 0:00:40.2]} 29. cxd3
{[%clk 0:00:10.8]} 29... g3 {[%clk 0:00:26.7]} 30. Rf3 {[%clk 0:00:10.8]} 30...
Kg7 {[%clk 0:00:27.1]} 31. Rxg3 {[%clk 0:00:09.9]} 31... Rh8+ {[%clk 0:00:27.2]}
32. Bh2 {[%clk 0:00:09.7]} 32... Rd4 {[%clk 0:00:27.5]} 33. Qf2 {[%clk
0:00:04.3]} 33... Rdh4 {[%clk 0:00:25.6]} 34. Qf6+ {[%clk 0:00:04.3]} 34... Kg8
{[%clk 0:00:25.9]} 35. Qd8+ {[%clk 0:00:04.3]} 35... Kg7 {[%clk 0:00:22.7]} 36.
Qf6+ {[%clk 0:00:04.7]} 36... Kf8 {[%clk 0:00:23.4]} 37. Qd8+ {[%clk 0:00:03.5]}
37... Qe8 {[%clk 0:00:24]} 38. Qd6+ {[%clk 0:00:02]} 38... Kg7 {[%clk 0:00:24]}
39. Kg1 {[%clk 0:00:02.6]} 39... Rxh2 {[%clk 0:00:23.8]} 40. Kf2 {[%clk
0:00:02.4]} 40... R2h5 {[%clk 0:00:20.5]} 41. Qc7 {[%clk 0:00:02.4]} 41... Rf5+
{[%clk 0:00:20.3]} 42. Ke3 {[%clk 0:00:02.7]} 42... Qc8 {[%clk 0:00:18.2]} 43.
Rc1 {[%clk 0:00:01.5]} 43... Qxc7 {[%clk 0:00:15.3]} 44. Rxc7 {[%clk 0:00:02.4]}
44... Bd5 {[%clk 0:00:15.8]} 45. d4 {[%clk 0:00:03.3]} 45... Rh1 {[%clk
0:00:14.4]} 46. Ke2 {[%clk 0:00:03.4]} 46... Rb1 {[%clk 0:00:14.1]} 47. Rc2
{[%clk 0:00:01.9]} 47... Rf4 {[%clk 0:00:14.3]} 48. Rd2 {[%clk 0:00:02.2]} 48...
Bc4+ {[%clk 0:00:10.3]} 49. Ke3 {[%clk 0:00:01.8]} 49... Rf5 {[%clk 0:00:10.9]}
50. Rf3 {[%clk 0:00:01.7]} 50... Re1+ {[%clk 0:00:10.9]} 51. Kf2 {[%clk
0:00:01.4]} 51... Rf1+ {[%clk 0:00:10.8]} 0-1

[Event "*** Titled Tuesday Blitz"]
[Site "Chess.com"]
[Date "2020.11.24"]
[Round "6"]
[White "MillyNeuf"]
[Black "bylavochka"]
[Result "1-0"]
[WhiteElo "2394"]
[BlackElo "2161"]
[TimeControl "180+1"]
[EndTime "11:23:22 PST"]
[Termination "MillyNeuf won on time"]

1. e4 {[%clk 0:03:00.9]} 1... c5 {[%clk 0:02:59.8]} 2. Nc3 {[%clk 0:03:00.2]}
2... d6 {[%clk 0:03:00]} 3. g3 {[%clk 0:03:00]} 3... Nf6 {[%clk 0:03:00.1]} 4.
Bg2 {[%clk 0:03:00.3]} 4... g6 {[%clk 0:03:00.5]} 5. d3 {[%clk 0:03:00.7]} 5...
Nc6 {[%clk 0:03:00.6]} 6. f4 {[%clk 0:03:00.5]} 6... Bg7 {[%clk 0:02:59.6]} 7.
Nf3 {[%clk 0:03:00.6]} 7... Nd7 {[%clk 0:02:59.2]} 8. O-O {[%clk 0:02:59.8]}
8... a6 {[%clk 0:02:58.8]} 9. Be3 {[%clk 0:02:58.3]} 9... Nd4 {[%clk 0:02:58.3]}
10. Qd2 {[%clk 0:02:53.5]} 10... b5 {[%clk 0:02:55.8]} 11. Rae1 {[%clk
0:02:50.6]} 11... Bb7 {[%clk 0:02:52.3]} 12. Nd1 {[%clk 0:02:49.5]} 12... Qb6
{[%clk 0:02:31]} 13. c3 {[%clk 0:02:47.4]} 13... Nxf3+ {[%clk 0:02:29.9]} 14.
Bxf3 {[%clk 0:02:48.3]} 14... h5 {[%clk 0:02:15.4]} 15. h3 {[%clk 0:02:47.1]}
15... Qa5 {[%clk 0:01:42.3]} 16. a3 {[%clk 0:02:39.4]} 16... h4 {[%clk
0:01:19.2]} 17. g4 {[%clk 0:02:37.4]} 17... O-O-O {[%clk 0:01:16.6]} 18. Nf2
{[%clk 0:02:23.9]} 18... Kb8 {[%clk 0:01:13.4]} 19. Ra1 {[%clk 0:01:55.2]} 19...
Qc7 {[%clk 0:01:02.1]} 20. Rac1 {[%clk 0:01:52.2]} 20... Qa5 {[%clk 0:00:59.3]}
21. Ra1 {[%clk 0:01:42]} 21... Qc7 {[%clk 0:00:58.7]} 22. a4 {[%clk 0:01:41.5]}
22... Nb6 {[%clk 0:00:45.7]} 23. axb5 {[%clk 0:01:40.3]} 23... axb5 {[%clk
0:00:45]} 24. Ra2 {[%clk 0:01:38.5]} 24... e5 {[%clk 0:00:40.2]} 25. f5 {[%clk
0:01:34.3]} 25... gxf5 {[%clk 0:00:39.6]} 26. gxf5 {[%clk 0:01:32.4]} 26... Bf6
{[%clk 0:00:39.7]} 27. Ng4 {[%clk 0:01:31.3]} 27... Rhg8 {[%clk 0:00:38.5]} 28.
Kh2 {[%clk 0:01:28.5]} 28... Be7 {[%clk 0:00:33.6]} 29. f6 {[%clk 0:01:17.2]}
29... Bf8 {[%clk 0:00:32.6]} 30. Bg5 {[%clk 0:01:13.5]} 30... d5 {[%clk
0:00:28.7]} 31. Qc1 {[%clk 0:00:54.5]} 31... dxe4 {[%clk 0:00:22.5]} 32. dxe4
{[%clk 0:00:53.8]} 32... Nc4 {[%clk 0:00:22.6]} 33. b3 {[%clk 0:00:49.6]} 33...
Nd6 {[%clk 0:00:22.6]} 34. Qe3 {[%clk 0:00:46]} 34... Re8 {[%clk 0:00:17.7]} 35.
Bxh4 {[%clk 0:00:43.7]} 35... Qc6 {[%clk 0:00:13.2]} 36. Re1 {[%clk 0:00:36.9]}
36... Nf5 {[%clk 0:00:12.1]} 37. exf5 {[%clk 0:00:29.3]} 37... Qxf3 {[%clk
0:00:12]} 38. Qxf3 {[%clk 0:00:28.9]} 38... Bxf3 {[%clk 0:00:12.9]} 39. Bg3
{[%clk 0:00:11.9]} 39... Bxg4 {[%clk 0:00:10.5]} 40. hxg4 {[%clk 0:00:11.9]}
40... Bd6 {[%clk 0:00:10]} 41. Rd2 {[%clk 0:00:10.9]} 41... Kc7 {[%clk
0:00:09.6]} 42. Red1 {[%clk 0:00:09.8]} 42... Bf8 {[%clk 0:00:03]} 43. Rd7+
{[%clk 0:00:08.3]} 43... Kc6 {[%clk 0:00:03.9]} 44. Rxf7 {[%clk 0:00:05.7]}
44... e4 {[%clk 0:00:03.7]} 45. Rdd7 {[%clk 0:00:05.5]} 45... e3 {[%clk
0:00:03.6]} 46. Rb7 {[%clk 0:00:04.5]} 46... Rc8 {[%clk 0:00:02]} 47. Be1 {[%clk
0:00:02.8]} 47... Bh6 {[%clk 0:00:01.6]} 48. Kg2 {[%clk 0:00:01.3]} 48... Rxg4+
{[%clk 0:00:01.4]} 49. Kf3 {[%clk 0:00:02.1]} 49... Rf4+ {[%clk 0:00:01.8]} 50.
Ke2 {[%clk 0:00:02.3]} 50... Rxf5 {[%clk 0:00:01.5]} 51. Rbe7 {[%clk 0:00:02.9]}
1-0

[Event "*** Titled Tuesday Blitz"]
[Site "Chess.com"]
[Date "2020.11.24"]
[Round "6"]
[White "bazar-wokzal"]
[Black "Andrii_Prydun"]
[Result "1-0"]
[WhiteElo "2527"]
[BlackElo "2344"]
[TimeControl "180+1"]
[EndTime "11:23:25 PST"]
[Termination "bazar-wokzal won by checkmate"]

1. e4 {[%clk 0:03:00.9]} 1... d5 {[%clk 0:02:59.8]} 2. exd5 {[%clk 0:03:00.9]}
2... Qxd5 {[%clk 0:03:00.2]} 3. Nc3 {[%clk 0:03:00.9]} 3... Qd6 {[%clk
0:02:59.6]} 4. Nf3 {[%clk 0:02:59.7]} 4... Nf6 {[%clk 0:02:56.4]} 5. d4 {[%clk
0:02:59.6]} 5... c6 {[%clk 0:02:55.7]} 6. g3 {[%clk 0:03:00]} 6... h5 {[%clk
0:02:49.2]} 7. Bg2 {[%clk 0:02:59.4]} 7... h4 {[%clk 0:02:49]} 8. Nxh4 {[%clk
0:02:58.3]} 8... Rxh4 {[%clk 0:02:49.3]} 9. gxh4 {[%clk 0:02:58.4]} 9... Bg4
{[%clk 0:02:49.6]} 10. Qd3 {[%clk 0:02:53.8]} 10... Nbd7 {[%clk 0:02:49]} 11. h3
{[%clk 0:02:46.6]} 11... Bh5 {[%clk 0:02:48.1]} 12. O-O {[%clk 0:02:30.2]} 12...
O-O-O {[%clk 0:02:45.4]} 13. Qg3 {[%clk 0:02:26.3]} 13... Qxd4 {[%clk
0:02:44.7]} 14. Be3 {[%clk 0:02:21.8]} 14... Qb4 {[%clk 0:02:42.2]} 15. Bxa7
{[%clk 0:02:16.1]} 15... e6 {[%clk 0:02:41.4]} 16. a3 {[%clk 0:02:06.6]} 16...
Qa5 {[%clk 0:02:40.6]} 17. Be3 {[%clk 0:02:05.2]} 17... Ne5 {[%clk 0:02:38.6]}
18. b4 {[%clk 0:02:01.7]} 18... Qc7 {[%clk 0:02:38.5]} 19. Na4 {[%clk 0:01:57]}
19... Bd6 {[%clk 0:02:37.6]} 20. Bb6 {[%clk 0:01:53.7]} 20... Qb8 {[%clk
0:02:34.8]} 21. Qc3 {[%clk 0:01:39]} 21... Nd5 {[%clk 0:02:27.3]} 22. Bxd5
{[%clk 0:01:31]} 22... exd5 {[%clk 0:02:26.1]} 23. Bxd8 {[%clk 0:01:31.3]} 23...
Nf3+ {[%clk 0:02:10.8]} 24. Kg2 {[%clk 0:01:24]} 24... Bxb4 {[%clk 0:02:08.9]}
25. Qxf3 {[%clk 0:00:54.3]} 25... Bxf3+ {[%clk 0:02:09.8]} 26. Kxf3 {[%clk
0:00:54.2]} 26... Bd2 {[%clk 0:02:04]} 27. Bg5 {[%clk 0:00:50.3]} 27... Bxg5
{[%clk 0:01:53.7]} 28. hxg5 {[%clk 0:00:50.5]} 28... Qe5 {[%clk 0:01:41.2]} 29.
Rfe1 {[%clk 0:00:19.6]} 29... Qxg5 {[%clk 0:01:40.3]} 30. Nb6+ {[%clk
0:00:17.5]} 30... Kc7 {[%clk 0:01:39.1]} 31. Rab1 {[%clk 0:00:18.1]} 31... Qg6
{[%clk 0:01:34.7]} 32. Re7+ {[%clk 0:00:16.6]} 32... Kd6 {[%clk 0:01:34.8]} 33.
Rd7+ {[%clk 0:00:16.4]} 33... Kc5 {[%clk 0:01:34.5]} 34. Na4+ {[%clk 0:00:16]}
34... Kd4 {[%clk 0:01:33.3]} 35. Rb4+ {[%clk 0:00:16]} 35... Ke5 {[%clk
0:01:33.8]} 36. Re7+ {[%clk 0:00:15.4]} 36... Kd6 {[%clk 0:01:33]} 37. Rbxb7
{[%clk 0:00:14.2]} 37... Qf5+ {[%clk 0:01:18.9]} 38. Kg2 {[%clk 0:00:12.9]}
38... Qg5+ {[%clk 0:01:14.4]} 39. Kf1 {[%clk 0:00:13]} 39... Qc1+ {[%clk
0:01:13.4]} 40. Kg2 {[%clk 0:00:12.6]} 40... Qg5+ {[%clk 0:01:12.8]} 41. Kf3
{[%clk 0:00:12.9]} 41... Qf5+ {[%clk 0:01:10.3]} 42. Ke3 {[%clk 0:00:13.4]}
42... d4+ {[%clk 0:00:48.8]} 43. Kd2 {[%clk 0:00:13.7]} 43... Qa5+ {[%clk
0:00:48.8]} 44. Kd3 {[%clk 0:00:09.5]} 44... Qxa4 {[%clk 0:00:48.1]} 45. Rxf7
{[%clk 0:00:09.6]} 45... c5 {[%clk 0:00:30.5]} 46. Rbd7+ {[%clk 0:00:06.5]}
46... Kc6 {[%clk 0:00:17]} 47. Rc7+ {[%clk 0:00:06.7]} 47... Kd6 {[%clk
0:00:12]} 48. Rfd7+ {[%clk 0:00:07]} 48... Ke6 {[%clk 0:00:11.6]} 49. Rxg7
{[%clk 0:00:07.2]} 49... Qxa3+ {[%clk 0:00:09.8]} 50. Ke4 {[%clk 0:00:07.6]}
50... Kf6 {[%clk 0:00:07.1]} 51. Rgf7+ {[%clk 0:00:07.2]} 51... Kg6 {[%clk
0:00:06.2]} 52. f4 {[%clk 0:00:07.7]} 52... Qxh3 {[%clk 0:00:04.5]} 53. f5+
{[%clk 0:00:06.4]} 53... Kg5 {[%clk 0:00:03.8]} 54. Rg7+ {[%clk 0:00:06.9]}
54... Kf6 {[%clk 0:00:03.1]} 55. Rg6# {[%clk 0:00:07.1]} 1-0